Cogmind - Beta 16 @@@ ROGUE MODE // 2025.12.28 @ 20:14:32 Player: Bity Result: Core destroyed Performance ------------- Evolutions (4) 2000 Regions Visited (9) 1800 Robots Destroyed (90) 450 Value Destroyed (3147) 3147 Prototype IDs (23) 460 Alien Tech Used (0) 0 Bonus (1394) 1394 TOTAL SCORE: 9251 Bonus ------- Follower Combat Kills 327 Registered with UFD 300 Met Optimus in HQ 500 Met Data Miner 300 Friendly Fire -33 Cogmind --------- Core Integrity 0/850 Matter 296/300 Energy 1268/1600 System Corruption 7% Temperature Critical (627) Movement Walking (120) Location -5/Proximity Caves Parts ------- > --- POWER (2) -------- Hybrid Fission Core Fusion Compressor > --- PROPULSION (3) --- Carbon-fiber Leg Improved Carbon-fiber Leg Enhanced Flexi-carbon Leg > --- UTILITY (8) ------ Compact Battery Advanced Energy Well Energy Filter Core Shielding Experimental Thermal Shield System Guard Drone Bay (0/2) > --- WEAPON (2) ------- Proton Cannon Neutron Cannon > --- INVENTORY (5) ---- Carbon-fiber Leg VTOL Module CPS Tube (1) Peak State ------------ > --- POWER ------------ Hybrid Fission Core Neutrino Core > --- PROPULSION ------- Improved Treads Improved Medium Treads Xenon Bombardment Thruster > --- UTILITY ---------- Huge Storage Unit Matter Compressor Advanced Weight Redist. System Experimental Signal Interpreter Improved Terrain Scanner Makeshift Salvage Targeting Computer Targeting Computer Improved Weapon Cycler > --- WEAPON ----------- Variable Charge Gun Heavy Plasma Cannon > --- INVENTORY -------- Light Fission Core Fusion Compressor Improved Carbon-fiber Leg VTOL Module Makeshift Flight Unit Humpback Compact Battery Energy Filter ECM Suite Thermal Shield System Guard Drone Bay High-powered Shock Rifle Proton Cannon Phase Cannon Heavy Plasma Cannon Coil Gun Mass Driver Improved Proton Missile Launcher Improved Remote Datajack CPS Tube CPS Tube Flail Chainsword [Rating: 73] Favorites ----------- Power Micro Nuclear Core Engine Ion Engine Power Core Micro Nuclear Core Propulsion Wheel Treads Improved Medium Treads Leg Aluminum Leg Wheel Wheel Flight Unit Xenon Bombardment Thruster Utility Huge Storage Unit Device Improved Terrain Scanner Storage Huge Storage Unit Processor Targeting Computer Protection Experimental Weapon Shielding Weapon Improved Proton Missile Launcher Energy Gun Variable Charge Gun Energy Cannon Heavy Plasma Cannon Ballistic Gun Assault Rifle Ballistic Cannon Heavy Flak Cannon Launcher Improved Proton Missile Launcher Special Weapon Plasma Cutter Impact Weapon Maul Slashing Weapon Chainsword Build | -11 -10 -10 -9 -9 -6 -6 -6 -6 -5 ------- Run | Yrd Mat Sub Rec Scr Fac Low Low Dat Pro Slots Evolved 8 | . . . . . 8 . . . . Power 1 | . . . . . 1 . . . . Propulsion 1 | . . . . . 1 . . . . Utility 6 | . . . . . 6 . . . . Weapon . | . . . . . . . . . . Parts Attached 106 | 3 9 7 5 4 31 9 12 . 26 Power 11 | . 1 1 . . 5 . 1 . 3 Engine 4 | . . 1 . . 3 . . . . Core 7 | . 1 . . . 2 . 1 . 3 Reactor . | . . . . . . . . . . Propulsion 25 | . 2 3 1 . 4 3 3 . 9 Treads 9 | . . 1 . . 1 2 1 . 4 Leg 6 | . 2 1 . . . . . . 3 Wheel 7 | . . 1 1 . 3 1 1 . . Hover . | . . . . . . . . . . Flight 3 | . . . . . . . 1 . 2 Utility 40 | 3 2 2 2 2 12 4 5 . 8 Device 21 | 2 . 2 1 1 4 4 3 . 4 Storage 11 | 1 2 . 1 . 4 . 1 . 2 Processor 5 | . . . . 1 2 . 1 . 1 Hackware . | . . . . . . . . . . Protection 3 | . . . . . 2 . . . 1 Artifact . | . . . . . . . . . . Weapon 30 | . 4 1 2 2 10 2 3 . 6 Energy Gun 3 | . . . . . 2 . . . 1 Energy Cannon 6 | . . 1 . . . 1 . . 4 Ballistic Gun 7 | . 2 . 1 . 2 1 . . 1 Ballistic Cannon 4 | . . . . 1 2 . 1 . . Launcher 5 | . 1 . . . 2 . 2 . . Special Weapon 3 | . 1 . 1 . 1 . . . . Impact Weapon 1 | . . . . 1 . . . . . Slashing Weapon 1 | . . . . . 1 . . . . Piercing Weapon . | . . . . . . . . . . Special Melee Weapon . | . . . . . . . . . . Unidentified Prototypes 5 | . . . . . 2 . . . 3 Corrupted Parts 2 | . . . . . . . . . 2 System Corruption 13 | . . . . . . . . . 13 Parts Lost 41 | . 3 2 . . 5 4 10 . 17 Power 4 | . . 1 . . 1 . 1 . 1 Propulsion 15 | . 1 . . . 2 3 3 . 6 Utility 12 | . . . . . 2 1 3 . 6 Weapon 10 | . 2 1 . . . . 3 . 4 Highest Loss Streak 7 | . 3 1 . . 2 3 5 . 7 To Critical Strikes . | . . . . . . . . . . Average Backups 21 | 7 9 10 17 23 23 23 23 24 20 Power 2 | 1 1 2 4 3 2 3 2 2 1 Propulsion 3 | 5 5 5 6 8 6 2 1 2 1 Utility 5 | . 1 2 3 4 4 7 6 7 6 Weapon 7 | 1 . . 3 6 7 8 10 10 8 Tool/Special . | . . . . . . . . . . Unused Backups 32 | 3 5 2 1 6 5 1 2 . 7 Power 6 | . 2 1 . 2 1 . . . . Propulsion 11 | 3 2 1 . 1 1 1 . . 2 Utility 6 | . 1 . 1 1 . . 2 . 1 Weapon 7 | . . . . 2 3 . . . 2 Tool/Special 2 | . . . . . . . . . 2 Average Slot Usage (%) 95 | . 99 97 99 93 96 98 97 100 89 Engine 5 | . 7 1 14 14 6 6 . . . Core 7 | . 6 11 . . 5 6 12 13 12 Treads 5 | . . 1 1 . 1 12 6 6 8 Leg 2 | . 27 24 . . . . . . 2 Wheel 10 | . . 1 26 28 18 6 5 6 . Flight 2 | . . . . . . . 5 6 5 Device 15 | . 14 14 14 9 17 19 18 20 14 Storage 13 | . 14 14 14 14 13 13 13 13 12 Processor 13 | . . . . 4 13 20 19 20 18 Energy Cannon 3 | . . 7 13 . . 2 . . 7 Ballistic Gun 2 | . 21 4 5 . 2 3 . . . Ballistic Cannon 2 | . . . . 12 4 3 . . . Launcher 3 | . 4 14 1 . 1 . 9 13 2 Impact Weapon 1 | . . . . 10 1 . . . . Peak Build Rating 73 | 9 10 11 13 23 58 60 71 71 73 Average Rating 46 | 8 8 10 12 17 50 57 66 71 64 On Entrance 32 | 6 7 10 11 9 23 53 60 71 71 Avg Prop Armor Cover (%) 11 | . 7 12 12 . 7 10 14 14 7 Naked Turns . | . . . . . . . . . . Heaviest Build 125 | 16 27 38 97 93 121 125 118 118 124 Greatest Support 90 | 20 20 20 26 29 55 86 86 12 90 Greatest Overweight (x) 9 | . 1 3 4 4 4 7 9 9 9 Average Overweight (x) 3 | . . 1 3 3 1 2 8 9 2 Largest Inventory Capacity 35 | 8 15 15 25 25 35 25 25 25 25 Average Capacity 23 | 8 9 10 23 25 25 25 25 25 22 Most Carried 25 | 8 10 15 24 25 25 25 25 25 25 Average Carried 22 | 7 9 10 18 24 24 24 24 25 21 Final Capacity 25 | 8 10 15 25 25 25 25 25 25 5 Final Carried 25 | 8 10 15 24 25 25 25 25 25 3 Class Distribution -------------------- 53% | Mutant 20% | Commander-Mutant 15% | Scavenger-Mutant 9% | Derelict-Mutant Dominant Class ---------------- Mutant | -10/Materials Scavenger-Mutant | -10/Subcaves Mutant | -9/Recycling Commander-Mutant | -9/Scraptown Scavenger-Mutant | -6/Factory Mutant | -6/Lower Caves Mutant | -6/Lower Caves Mutant | -6/Data Miner Derelict-Mutant | -5/Proximity Caves Resources | -11 -10 -10 -9 -9 -6 -6 -6 -6 -5 ----------- Run | Yrd Mat Sub Rec Scr Fac Low Low Dat Pro Matter Collected 3751 | 385 257 240 211 225 502 801 513 . 617 Remotely . | . . . . . . . . . . Salvage Created 3187 | 315 342 102 272 . 264 228 731 . 933 Parts 152 | 26 24 8 10 . 17 13 27 . 27 Haulers Intercepted . | . . . . . . . . . . Recyclers Shooed 2 | . 1 . 1 . . . . . . Parts Field Recycled . | . . . . . . . . . . Retrieved Matter . | . . . . . . . . . . Parts Self-Destructed 69 | . . 15 . . . 13 19 . 22 Prevented 23 | . . . . . . . 12 . 11 Parts Restored . | . . . . . . . . . . Kills | -11 -10 -10 -9 -9 -6 -6 -6 -6 -5 ------- Run | Yrd Mat Sub Rec Scr Fac Low Low Dat Pro Combat Hostiles Destroyed 70 | . 10 6 3 . 6 8 22 . 15 Guns 12 | . 6 . . . 1 2 3 . . Cannons 23 | . 1 . 3 . 1 6 8 . 4 AOE 34 | . 3 6 . . 4 . 10 . 11 Classes Destroyed 16 | 3 2 3 2 . 3 1 1 . 1 Worker 2 | 2 . . . . . . . . . Builder 1 | . . . . . 1 . . . . Tunneler 10 | 9 . . . . 1 . . . . Recycler 4 | 1 1 . 2 . . . . . . Drone 2 | . . . . . . . . . 2 Turret 2 | . . 2 . . . . . . . Watcher 1 | . 1 . . . . . . . . Swarmer 17 | . . 3 . . . 3 9 . 2 Grunt 35 | . 10 . 1 . 3 3 12 . 6 Brawler 3 | . . . . . . 1 . . 2 Duelist 2 | . . . . . . . 1 . 1 Protector 1 | . . . 1 . . . . . . Sentry 3 | . . . . . 1 . . . 2 Hunter 2 | . . . . . 1 1 . . . Programmer 2 | . . . 1 . 1 . . . . Subdweller 3 | . . 3 . . . . . . . Packrat 2 | . . . . . . . . . 2 Best Kill Streak 7 | 2 4 3 3 . 4 4 7 . 7 Combat Bots Only 7 | . 4 3 3 . 3 4 7 . 7 Max Kills in Single Turn 6 | 1 2 2 1 . 4 1 2 . 6 Gunslinging . | . . . . . . . . . . Exploded 6 | . 2 2 . . 3 . 2 . 6 Melee . | . . . . . . . . . . Uniques/NPCs Destroyed . | . . . . . . . . . . Combat | -11 -10 -10 -9 -9 -6 -6 -6 -6 -5 -------- Run | Yrd Mat Sub Rec Scr Fac Low Low Dat Pro Hostile Shots Fired 476 | . 61 36 10 . 82 28 78 . 181 Missed 151 | . 20 15 1 . 30 6 15 . 64 Hits 325 | . 41 21 9 . 52 22 63 . 117 Melee 5 | . . . . . . 1 . . 4 Projectile 320 | . 41 21 9 . 52 21 63 . 113 Critical Strikes 9 | . 1 1 . . . . 1 . 6 Part Disruptions 2 | . . . 1 . 1 . . . . Damage Taken 5641 | . 561 274 128 . 795 401 1155 . 2327 Core 1137 | . 157 56 25 . 228 51 154 . 466 Absorbed by Shields 31 | . . . . . 31 . . . . Redirected to Shielding 214 | . . . . . 211 . . . 3 Ignored by Resistances 204 | . . . . . . . . . 204 Core Remaining (%) 52 | 100 . . . 4 . . . . . Volleys Fired 236 | 39 43 28 7 . 20 17 38 . 44 Largest 2 | 2 2 2 2 . 2 2 2 . 2 Hottest 180 | 40 120 110 100 . 103 72 86 . 180 Shots Fired 402 | 78 74 32 14 . 36 34 58 . 76 Gun 197 | 78 62 3 . . 7 17 13 . 17 Cannon 119 | . . 2 7 . 23 17 24 . 46 Launcher 70 | . 4 27 . . 5 . 21 . 13 Special 16 | . 8 . 7 . 1 . . . . Kinetic 276 | 78 62 3 . . 29 34 37 . 33 Thermal 46 | . 8 2 14 . . . . . 22 Explosive 42 | . 4 27 . . 4 . 7 . . Electromagnetic 37 | . . . . . 2 . 14 . 21 Robot Hit Streak 13 | 8 7 1 3 . 6 9 7 . 13 Robot Miss Streak 5 | 4 3 2 1 . 3 5 5 . 3 Penetration Max . | . . . . . . . . . . Secondary Targets 1 | . 1 . . . . . . . . Max Gunslinging Chain 1 | . 1 . . . . . . . . Shots Hit Robots 238 | 46 45 1 7 . 26 32 38 . 43 Core Hits 239 | 17 26 15 8 . 22 49 63 . 39 Critical Kills . | . . . . . . . . . . Critical Parts Destroyed 1 | . 1 . . . . . . . . Critical Strikes 1 | . 1 . . . . . . . . Destroy 1 | . 1 . . . . . . . . Melee Attacks 21 | . . . . . 20 . 1 . . Impact 7 | . . . . . 7 . . . . Slashing 14 | . . . . . 13 . 1 . . Piercing . | . . . . . . . . . . Sneak Attacks . | . . . . . . . . . . Combat Hostiles . | . . . . . . . . . . Follow-up Attacks . | . . . . . . . . . . Damage Inflicted 8302 | 425 806 632 151 . 1052 644 2004 . 2588 Guns 1767 | 425 437 12 . . 73 292 302 . 226 Cannons 2337 | . . . 113 . 440 352 461 . 971 Explosions 4016 | . 225 620 . . 539 . 1241 . 1391 Melee . | . . . . . . . . . . Ramming 2 | . . . 2 . . . . . . Kinetic 3428 | 425 437 12 . . 513 644 763 . 634 Thermal 1171 | . 144 . 149 . . . . . 878 Explosive 1900 | . 225 620 . . 477 . 578 . . Electromagnetic 1801 | . . . . . 62 . 663 . 1076 Impact . | . . . . . . . . . . Slashing . | . . . . . . . . . . Piercing . | . . . . . . . . . . Highest Corruption 15 | . 1 1 1 . . . . . 15 Average Corruption 5 | . 1 1 1 . . . . . 9 Corruption Purged . | . . . . . . . . . . Corruption Blocked . | . . . . . . . . . . Effects 93 | . 3 1 4 . . . . . 85 Message Errors 26 | . 1 1 1 . . . . . 23 Matter Fused 21 | . 2 . . . . . . . 19 Heat Flow Errors 11 | . . . 3 . . . . . 8 Energy Discharges 14 | . . . . . . . . . 14 Parts Rejected 1 | . . . . . . . . . 1 Data Loss (minor) 9 | . . . . . . . . . 9 Data Loss (major) 4 | . . . . . . . . . 4 Misfires 4 | . . . . . . . . . 4 Misdirections 1 | . . . . . . . . . 1 Weapon Failures 2 | . . . . . . . . . 2 Overload Shots . | . . . . . . . . . . Overflow Damage 172 | . . 5 . . 8 . 15 . 144 Projectiles 53 | . . . . . 1 . . . 52 Explosions 119 | . . 5 . . 7 . 15 . 92 Melee . | . . . . . . . . . . Knockbacks 40 | . . . . . 8 8 17 . 7 Impact . | . . . . . . . . . . Kinetic 38 | . . . . . 8 8 16 . 6 Secondary 2 | . . . . . . . 1 . 1 Self-Inflicted Damage 504 | . . 77 1 . 238 . 50 . 138 Shots 21 | . . 3 . . 4 . 5 . 9 Rammed 1 | . . . 1 . . . . . . Targets Rammed 1 | . . . 1 . . . . . . Kicked . | . . . . . . . . . . Crushed . | . . . . . . . . . . Highest Temperature 627 | . 182 229 270 . 130 132 207 . 627 Average Temperature 90 | . 59 70 102 . 58 45 67 . 122 Received Heat Transfer 2180 | . 333 322 30 . 60 81 333 . 1021 Effects 6 | . . . . . . . . . 6 Shutdowns 2 | . . . . . . . . . 2 Energy Bleed 1 | . . . . . . . . . 1 Damage (major) 2 | . . . . . . . . . 2 Damage (core) 1 | . . . . . . . . . 1 Siege Activations . | . . . . . . . . . . Martial Activations . | . . . . . . . . . . Shielding Activations . | . . . . . . . . . . Robots Disrupted . | . . . . . . . . . . Combat Hostiles . | . . . . . . . . . . Robots Corrupted 1 | . . . . . . . 1 . . Combat Hostiles 1 | . . . . . . . 1 . . Parts Fried 4 | . . . . . . . 4 . . Impact Corruptions . | . . . . . . . . . . Robots Melted . | . . . . . . . . . . Combat Hostiles . | . . . . . . . . . . Parts Melted 1 | . . . . . . . . . 1 Heat Transferred 1548 | . 300 . 241 . . . . . 1007 Parts Sabotaged . | . . . . . . . . . . Parts Stolen . | . . . . . . . . . . Parts Stripped . | . . . . . . . . . . Power Chain Reactions 3 | . . . . . . . . . 3 Alert | -11 -10 -10 -9 -9 -6 -6 -6 -6 -5 ------- Run | Yrd Mat Sub Rec Scr Fac Low Low Dat Pro Maximum Alert Level . | . . . . . . . . . . Low Security (%) 100 | 100 100 . 100 . 100 . . . . Level 1 . | . . . . . . . . . . Level 2 . | . . . . . . . . . . Level 3 . | . . . . . . . . . . Level 4 . | . . . . . . . . . . Level 5 . | . . . . . . . . . . High Security . | . . . . . . . . . . Max Security . | . . . . . . . . . . Peak Influence 174 | 10 146 . 174 . 154 . . . . Initial 174 | . . . 174 . . . . . . Average 29 | 1 43 . 27 . 35 . . . . Influence Increases 2784 | 60 338 550 207 . 387 190 535 . 517 Destroy 0b10 Robot/C 1480 | . 200 100 80 . 140 160 440 . 360 Destroy 0b10 Robot/NC 100 | 60 10 . 15 . 5 . . . 10 Destroy Leader 182 | . 42 . . . 50 30 50 . 10 Allied During Kill 91 | . . . 19 . 10 . . . 62 Successful Hack 69 | . 15 . 29 . 25 . . . . Disable Machine 135 | . 15 . 30 . 90 . . . . Destroy Structure 112 | . 26 . 19 . 67 . . . . Lose Combat Pursuer 615 | . 30 450 15 . . . 45 . 75 Influence Decreases 2517 | 60 200 324 553 18 308 269 535 . 250 Entered New Map 305 | . . 67 190 18 . 30 . . . Time Decay 1822 | 60 194 237 343 . 247 199 445 . 97 Lost Part 319 | . 6 20 . . 30 40 90 . 133 Lost Ally 71 | . . . 20 . 31 . . . 20 Squads Dispatched 9 | . 1 . . . 6 . 1 . 1 Investigation 4 | . 1 . . . 2 . 1 . . Extermination 1 | . . . . . 1 . . . . Reinforcement 2 | . . . . . 2 . . . . Assault 1 | . . . . . . . . . 1 Garrison 1 | . . . . . 1 . . . . Intercept . | . . . . . . . . . . Searches Triggered . | . . . . . . . . . . Construction Impeded . | . . . . . . . . . . Haulers Reinforced . | . . . . . . . . . . Active Scanning Responses . | . . . . . . . . . . Cargo Convoy Interrupts . | . . . . . . . . . . Stealth | -11 -10 -10 -9 -9 -6 -6 -6 -6 -5 --------- Run | Yrd Mat Sub Rec Scr Fac Low Low Dat Pro Distress Signals . | . . . . . . . . . . Communications Jammed . | . . . . . . . . . . Distress Signals . | . . . . . . . . . . Times Spotted 100 | . 15 18 4 . 8 8 21 . 26 Peak Tracking Total 9 | . 4 3 2 . 3 4 4 . 9 Tactical Retreats 15 | . 2 6 1 . . . 3 . 3 Traps | -11 -10 -10 -9 -9 -6 -6 -6 -6 -5 ------- Run | Yrd Mat Sub Rec Scr Fac Low Low Dat Pro Traps Triggered . | . . . . . . . . . . Indirectly . | . . . . . . . . . . Trap Hack Attempts . | . . . . . . . . . . Triggered . | . . . . . . . . . . Disarmed . | . . . . . . . . . . Reprogrammed . | . . . . . . . . . . Reused . | . . . . . . . . . . Traps Extracted . | . . . . . . . . . . Installed . | . . . . . . . . . . Triggered . | . . . . . . . . . . Machines | -11 -10 -10 -9 -9 -6 -6 -6 -6 -5 ---------- Run | Yrd Mat Sub Rec Scr Fac Low Low Dat Pro Machines Disabled 14 | . 1 3 2 . 6 . . . 2 Max in Single Turn 2 | . 1 2 1 . 2 . . . 1 Machines Repaired . | . . . . . . . . . . Machines Dismantled 2 | . . . 2 . . . . . . Machines Sabotaged . | . . . . . . . . . . Overloaded Fab Kills . | . . . . . . . . . . Hacking | -11 -10 -10 -9 -9 -6 -6 -6 -6 -5 --------- Run | Yrd Mat Sub Rec Scr Fac Low Low Dat Pro Machines Accessed 36 | . 5 . 10 4 8 3 2 4 . Terminals 19 | . 5 . 6 . 7 . 1 . . Fabricators . | . . . . . . . . . . Repair Stations . | . . . . . . . . . . Recycling Units 3 | . . . 3 . . . . . . Scanalyzers 1 | . . . . . 1 . . . . Garrison Access . | . . . . . . . . . . Total Hacks 143 | . 21 . 39 29 18 5 4 27 . Successful 99 | . 8 . 21 29 5 5 4 27 . Failed 44 | . 13 . 18 . 13 . . . . Catastrophic 6 | . 1 . 3 . 2 . . . . Database Lockouts . | . . . . . . . . . . Manual 53 | . 19 . 19 2 13 . . . . Terminals 69 | . 21 . 29 . 16 . 3 . . Fabricators . | . . . . . . . . . . Repair Stations . | . . . . . . . . . . Recycling Units 4 | . . . 4 . . . . . . Scanalyzers 2 | . . . . . 2 . . . . Garrison Access . | . . . . . . . . . . Terminal Hacks 84 | . 4 . 13 29 2 5 4 27 . Record 52 | . . . 6 29 . 3 3 11 . Part Schematic 11 | . . . 2 . . . . 9 . Robot Schematic 4 | . . . . . . . . 4 . Prototype ID Bank 4 | . 1 . . . . . . 3 . Open Door 3 | . . . . . . 2 1 . . Emergency Access Points 1 | . . . 1 . . . . . . Terminal Index 2 | . 1 . 1 . . . . . . Locate Traps 1 | . 1 . . . . . . . . Registered Components 2 | . 1 . . . 1 . . . . Zone Layout 3 | . . . 2 . 1 . . . . Release Object 1 | . . . 1 . . . . . . Fabricator Hacks . | . . . . . . . . . . Repair Station Hacks . | . . . . . . . . . . Recycling Unit Hacks 4 | . . . 4 . . . . . . Report Inventory 3 | . . . 3 . . . . . . Retrieve Components 1 | . . . 1 . . . . . . Scanalyzer 1 | . . . . . 1 . . . . Retrieve Study 1 | . . . . . 1 . . . . Garrison Access Hacks . | . . . . . . . . . . Unauthorized Hacks 10 | . 4 . 4 . 2 . . . . Terminals 10 | . 4 . 4 . 2 . . . . Botnet 9 | . 3 . 4 . 2 . . . . Operators 1 | . 1 . . . . . . . . Fabricators . | . . . . . . . . . . Repair Stations . | . . . . . . . . . . Recycling Units . | . . . . . . . . . . Scanalyzers . | . . . . . . . . . . Garrison Access . | . . . . . . . . . . Data Cores Recovered . | . . . . . . . . . . Used . | . . . . . . . . . . Hacking Detections 21 | . 5 . 7 . 8 . 1 . . Full Trace Events 11 | . 2 . 6 . 2 . 1 . . Feedback Events 1 | . 1 . . . . . . . . Corruption 1 | . 1 . . . . . . . . Feedback Blocked . | . . . . . . . . . . Robot Schematics Acquired 4 | . . . . . . . . 4 . Robots Built . | . . . . . . . . . . Authchips . | . . . . . . . . . . Time . | . . . . . . . . . . Total Robot Build Rating . | . . . . . . . . . . Part Schematics Acquired 11 | . . . 2 . . . . 9 . Parts Built . | . . . . . . . . . . Authchips . | . . . . . . . . . . Time . | . . . . . . . . . . Total Part Build Rating . | . . . . . . . . . . Part Studies Acquired 1 | . . . . . 1 . . . . Parts Repaired . | . . . . . . . . . . Time . | . . . . . . . . . . Parts Recycled . | . . . . . . . . . . Recycled Matter . | . . . . . . . . . . Retrieved Matter . | . . . . . . . . . . Retrieved Components 1 | . . . 1 . . . . . . Parts Scanalyzed . | . . . . . . . . . . Part Schematics Acquired . | . . . . . . . . . . Parts Damaged . | . . . . . . . . . . Bothacking | -11 -10 -10 -9 -9 -6 -6 -6 -6 -5 ------------ Run | Yrd Mat Sub Rec Scr Fac Low Low Dat Pro Used RIF Installer . | . . . . . . . . . . Robots Hacked . | . . . . . . . . . . Non-combat . | . . . . . . . . . . Combat . | . . . . . . . . . . Robot Hacks Applied . | . . . . . . . . . . Relay Couplers Released . | . . . . . . . . . . Fabnet Peak Effective % . | . . . . . . . . . . Robots Rewired 12 | . . . 12 . . . . . . Allies Hacked . | . . . . . . . . . . Hacks Repelled . | . . . . . . . . . . Allies | -11 -10 -10 -9 -9 -6 -6 -6 -6 -5 -------- Run | Yrd Mat Sub Rec Scr Fac Low Low Dat Pro Total Allies 13 | . . . 12 . . . . . 1 Largest Group 11 | . . . 11 9 9 . . . 1 Highest-Rated Group 146 | . . . 146 101 101 . . . 96 Highest-Rated Ally 96 | . . . 34 27 27 . . . 96 Total Orders 1 | . . . . . 1 . . . . EXPLORE 1 | . . . . . 1 . . . . Ally Attacks 49 | . . . 18 . 14 . . . 17 Total Damage 1170 | . . . 291 . 124 . . . 755 Kills 8 | . . . 2 . 1 . . . 5 Allies Corrupted . | . . . . . . . . . . Allies Melted . | . . . . . . . . . . Intel | -11 -10 -10 -9 -9 -6 -6 -6 -6 -5 ------- Run | Yrd Mat Sub Rec Scr Fac Low Low Dat Pro Active Infowar (turns) 11054 | 270 534 528 180 . 1108 2688 3189 390 2167 Optics 86 | . . 67 19 . . . . . . Sensors 3815 | . . 176 . . . 2665 974 . . Terrain 5114 | 259 . . . . . . 2298 390 2167 Seismic 4620 | 11 534 285 161 . 1108 1630 891 . . Cloaking 3711 | . . . . . . . 2933 390 388 Jamming 767 | . . . . . . 767 . . . ECM 5 | . . . . . 5 . . . . Robot Analysis Total . | . . . . . . . . . . Derelict Logs Recovered 10 | . . 1 . 3 . 2 2 . 2 Drone Launches 2 | . . . . . 2 . . . . Drone Recoveries . | . . . . . . . . . . Exploration | -11 -10 -10 -9 -9 -6 -6 -6 -6 -5 ------------- Run | Yrd Mat Sub Rec Scr Fac Low Low Dat Pro Turns Passed 15227 | 308 534 528 1584 2027 1118 2688 3189 390 2861 Spaces Moved 7540 | 145 243 252 994 1535 685 1357 1210 134 985 Core . | . . . . . . . . . . Treads 1353 | . . . . . . 627 82 . 644 Legs 635 | 145 243 214 . . . . . . 33 Wheels 5409 | . . 38 994 1535 685 730 1128 134 165 Hover . | . . . . . . . . . . Flight 143 | . . . . . . . . . 143 Fastest Speed 35 | 120 120 120 125 125 109 116 200 225 35 Average Speed 172 | 120 143 165 125 129 118 180 225 225 257 Slowest Speed 560 | 120 190 190 140 140 150 213 280 225 560 Overloaded Moves . | . . . . . . . . . . Propulsion Burnouts . | . . . . . . . . . . Robots Hopped . | . . . . . . . . . . Potential Cave-ins 1 | . . . . . 1 . . . . Cave-ins Triggered . | . . . . . . . . . . Exploration Rate (%) 60 | 6 34 15 99 90 14 98 97 74 77 Regions Visited 9 Branch Regions 7 Pre-discovered Areas 4 | . . . . 1 . . 1 1 1 Known Exits Taken 5 | . . . . 1 1 1 1 1 . Unknown Exits Taken 4 | 1 1 1 1 . . . . . . Scrap Searched 22 | . . 1 . 5 . 11 4 . 1 Spaces Dug 28 | . 1 . . . 16 . 11 . . Terrain Destroyed 231 | . 24 47 3 . 77 . 54 . 26 Melee 17 | . . . . . 16 . 1 . . Projectile 22 | . 2 1 3 . 1 . 3 . 12 AOE 192 | . 22 46 . . 60 . 50 . 14 Terrain Rammed . | . . . . . . . . . . Walls Destroyed . | . . . . . . . . . . Machines Disabled . | . . . . . . . . . . Actions | -11 -10 -10 -9 -9 -6 -6 -6 -6 -5 --------- Run | Yrd Mat Sub Rec Scr Fac Low Low Dat Pro Total 9301 | 211 345 334 1270 1586 920 1567 1603 223 1242 Wait 1056 | 15 40 27 121 25 119 163 327 90 129 Move 7531 | 144 242 251 993 1534 684 1356 1209 133 985 Hop . | . . . . . . . . . . Pick Up 112 | 6 5 13 8 12 22 8 10 . 28 Fast Attach 27 | 1 1 . . 2 3 . 3 . 17 Attach 47 | . 2 2 . . 15 4 7 . 17 Detach 8 | . . . 2 . 2 . . . 4 Swap 70 | 2 8 6 6 2 20 12 5 . 9 Drop 62 | 4 4 7 2 11 15 7 3 . 9 Fire 236 | 39 43 28 7 . 20 17 38 . 44 Melee 21 | . . . . . 20 . 1 . . Ram 1 | . . . 1 . . . . . . Kick . | . . . . . . . . . . Crush . | . . . . . . . . . . Escape Stasis . | . . . . . . . . . . Rewire 109 | . . . 109 . . . . . . Trap . | . . . . . . . . . . Miscellaneous 21 | . . . 21 . . . . . . Route ------- -11/Scrapyard -10/Materials (discovered 2 exits: [*Mat] / [*Sub]) -10/Subcaves (discovered 2 exits: [*Mat] / *Rec) -9/Recycling (discovered 2 exits: [*Fac] / *Scr) -9/Scraptown (discovered 2 exits: *Fac x2) -6/Factory (discovered 3 exits: *Fac / *Low x2) -6/Lower Caves -6/Lower Caves (discovered 2 exits: *Fac / *Dat) -6/Data Miner -5/Proximity Caves History --------- Turn | Location | Event 15 | -11/Scrapyard | Discovered new exit (range 3) 309 | -11/Scrapyard | Entered Materials 319 | -10/Materials | Build established: Mutant 572 | -10/Materials | Core integrity fell below 50% 597 | -10/Materials | Lost 3 parts (1n2w) 733 | -10/Materials | Discovered new exit (range 16) 820 | -10/Materials | Discovered new exit (range 12) 843 | -10/Materials | Entered Subcaves 888 | -10/Subcaves | Build established: Scavenger-Mutant 1111 | -10/Subcaves | Discovered new exit (range 11) 1166 | -10/Subcaves | Discovered new exit (range 10) 1216 | -10/Subcaves | Core integrity fell below 20% 1371 | -10/Subcaves | Entered Recycling 1411 | -9/Recycling | Build established: Mutant 2028 | -9/Recycling | Discovered new exit (range 16) 2162 | -9/Recycling | P-60 Hacker assimilated allied Mercenary 2a 2528 | -9/Recycling | Build established: Commander-Mutant 2902 | -9/Recycling | Scanned before Scraplab entrance 2932 | -9/Recycling | Entered Scraplab 2944 | -9/Recycling | Discovered new exit (range 2) 2955 | -9/Recycling | Entered Scraptown 2955 | -9/Scraptown | Accompanied by 9 allies 2955 | -9/Scraptown | System corruption cleaned by C-Scrubber 3197 | -9/Scraptown | Visited UFD Registry 3197 | -9/Scraptown | Registered with UFD as "Wrenchmind" 3213 | -9/Scraptown | Visited Junk Repository 3255 | -9/Scraptown | Visited Symbiants 3283 | -9/Scraptown | Visited Awakened 3328 | -9/Scraptown | Visited Shadow of the Wyrm 3352 | -9/Scraptown | Visited Scrapoid Research Area 3646 | -9/Scraptown | Discovered new exit (range 11) 3699 | -9/Scraptown | Guru changed UFD alias to "Megaforce" 3741 | -9/Scraptown | Scanned Subdweller tech in exchange for log data 3743 | -9/Scraptown | Learned location of Armory (-3) 3744 | -9/Scraptown | Learned 12 Research zone layouts 3921 | -9/Scraptown | Visited Cyclists 3983 | -9/Scraptown | Visited Analyses Database 4031 | -9/Scraptown | Visited Curators Association 4058 | -9/Scraptown | Visited Junk Repository 4124 | -9/Scraptown | Visited A0-MCA Data Center 4158 | -9/Scraptown | Visited Cartography Club 4170 | -9/Scraptown | Visited Research Penetration Think Tank 4196 | -9/Scraptown | Visited DA-N13 Charitable Foundation 4207 | -9/Scraptown | Found DCF Scrap (31 items) 4228 | -9/Scraptown | Visited Science Guys 4248 | -9/Scraptown | Visited Botcube Research 4273 | -9/Scraptown | Received an X-ray algorithm 4283 | -9/Scraptown | Visited Infowarlord's Domain 4295 | -9/Scraptown | Found Exp. Signal Interpreter 4872 | -9/Scraptown | Met Optimus 4872 | -9/Scraptown | Accepted into 0bPrime 4876 | -9/Scraptown | Ran an X-ray algorithm 4878 | -9/Scraptown | Ran an X-ray algorithm 4957 | -9/Scraptown | Discovered new exit (range 3) 4962 | -9/Scraptown | Identified exit to Factory 4982 | -9/Scraptown | Entered Factory 4982 | -6/Factory | Accompanied by 9 allies 4982 | -6/Factory | Evolved 8 slots: Power x1, Propulsion x1, Utility x6 5274 | -6/Factory | Lost 4 allies 5427 | -6/Factory | Attached CPS modules to H-66 Slayer. 5455 | -6/Factory | Garrison activated, responded to threat 5500 | -6/Factory | Lost 5 allies 5721 | -6/Factory | Discovered new exit (range 5) 5724 | -6/Factory | Identified exit to Lower Caves 5728 | -6/Factory | Build established: Scavenger-Mutant 5767 | -6/Factory | Discovered new exit (range 9) 5840 | -6/Factory | Identified exit to Factory 5902 | -6/Factory | Discovered exit to Lower Caves (range 33) 6100 | -6/Factory | Entered Lower Caves 6411 | -6/Lower Caves | Build established: Mutant 7209 | -6/Lower Caves | Lost 3 parts (2n1u) 7212 | -6/Lower Caves | Learned Factory trap positions 7482 | -6/Lower Caves | Build established: Scavenger-Mutant 7869 | -6/Lower Caves | Entered an active Warlord outpost 7886 | -6/Lower Caves | Learned Factory emergency access door positions 7899 | -6/Lower Caves | Learned 8 Research zone layouts 8221 | -6/Lower Caves | Build established: Mutant 8733 | -6/Lower Caves | Discovered new exit (range 11) 8769 | -6/Lower Caves | Identified exit to Lower Caves 8788 | -6/Lower Caves | Entered another Lower Caves area 8789 | -6/Lower Caves | Encountered a Warlord checkpoint 8820 | -6/Lower Caves | Discovered exit to Factory (range 4) 8906 | -6/Lower Caves | Attracted the attention of an 0b10 base 8985 | -6/Lower Caves | Destroyed 7 combat bots 8989 | -6/Lower Caves | Lost 5 parts (1p2n1u1w) 9772 | -6/Lower Caves | Core integrity fell below 50% 9795 | -6/Lower Caves | Lost 3 parts (1u2w) 10276 | -6/Lower Caves | Discovered new exit (range 15) 10305 | -6/Lower Caves | Identified exit to Data Miner 11977 | -6/Lower Caves | Entered Data Miner 11977 | -6/Data Miner | Discovered new exit (range 7) 12020 | -6/Data Miner | Met Data Miner 12092 | -6/Data Miner | Learned location of Section 7 (-2) 12092 | -6/Data Miner | Acquired the access code to Warlord's prototype stash 12270 | -6/Data Miner | Received God Mode back door access code from Data Miner 12358 | -6/Data Miner | Identified exit to Proximity Caves 12367 | -6/Data Miner | Entered Proximity Caves 12376 | -5/Proximity Caves | Learned Factory terminal intel 12738 | -5/Proximity Caves | Attracted the attention of an 0b10 checkpoint 12741 | -5/Proximity Caves | Spotter reported a threat 12786 | -5/Proximity Caves | Lost 4 parts (2n1u1w) 13307 | -5/Proximity Caves | Build established: Derelict-Mutant 13539 | -5/Proximity Caves | Spotted B-75 Beast 14569 | -5/Proximity Caves | Lost 3 parts (1n2u) 14576 | -5/Proximity Caves | Escorted by Enhanced Grunt 14830 | -5/Proximity Caves | Build established: Mutant 14907 | -5/Proximity Caves | Attracted the attention of an 0b10 outpost 14924 | -5/Proximity Caves | System corruption reached 10% 14928 | -5/Proximity Caves | Core integrity fell below 20% 14944 | -5/Proximity Caves | Destroyed 7 combat bots 14955 | -5/Proximity Caves | Lost 7 parts (1p2n1u3w) 15005 | -5/Proximity Caves | Released all parts (9) 15030 | -5/Proximity Caves | Lost 3 parts (1n2u) 15153 | -5/Proximity Caves | Found Prototype Device 15153 | -5/Proximity Caves | Identified Exp. Thermal Shield 15229 | -5/Proximity Caves | Core destroyed Last Messages --------------- 15191_ Acquired 32 matter. 15195_ Acquired 42 matter. 15201_ Acquired 38 matter. 15202_ Acquired 1 matter. 15203_ Acquired Core Shielding. 15215_ Acquired 23 matter. 15216_ Acquired 1 matter. 15216_ Critical hit (Burn: +50). 15217_ Power failure, Fusion Compressor shutdown. 15217_ Acquired 1 matter. 15223_ Overheating: Imp. Carbon-fiber Leg damaged (-5). 15223_ Overheating: Core Shielding damaged (-12). 15223_ Critical hit (Burn: +50). 15225_ G-50 Soldier destroyed. 15229_ Power failure, Fusion Compressor shutdown. 15229_ Overheating: Core damaged (-85). Map ----- +----------------------------------------------------+ | ##??????#?####???????#??#?#?????????????????????? | | ##?####### ########?? ????????#???????????????? | | #??# #???????????????????????????? | | ###### #????????? ?????????????????? | | #????# " #?#?????????????????????????? | | ##???# " " #???????????????????????????? | | #???# """ " #???????????????????????????? | | ##??# "" """" #???????????????????????????? | | #### " " "" #?#???????? #???????????????? | | ## " " #?????????? ###?????????????? | | ### "" " #?????????? ##????????????? | | #### """""" #????????? ?????????????? | | #### " " "" #????????? #?????????????? | | """ " " #????????? #?????????????? | | """""" " #????????# ##????????????? | | ### " "" "" #????#### ?????????????? | | ### " " """" #???## %"???????????????? | | ### " " #???# % #????????????????? | | " #?#?# %#?????????????????? | | ## #####% = ###???????????????? | | ## ###;%] ;##??????????????? | | ## /!% #??????????????? | | ########%i%/!== # ????????? | | ###########??#### * %[ % # #??## #???????? | | #????#?????#### !*/g!%] ;; #???????????????? | | ###?????????## ! ]#@| % ; #???????????????? | | ##???#?????## ![# | % ; #???????????????? | | #?#????????# !# ; #???????????????? | | #???????#??# #" ; #???????????????? | | #??#??###### ##;;*;;# ##??????????????? | | #?????## ;#??????????????? | | # #???#??# ###??????????????? | | ###??????# #### ## ???????????? | | ????##??## #### ### ?????????? | | ?#???????# #?# ##?## ### ????????? | | ##???????# #?# ###?# ##?? ## ?????????? | | ???????#?# ### #### ##???# ##???????????? | | ##???????# ## #?###?????######????????????? | | #?#?#??## ## #???????????????????????????? | | #???????# ## ##??????????????????????????? | | ##?????## #??????????????????????????? | | #???#### ##??????????????????????????? | | ##???# ## ##???????????????????????????? | | #????# #### ###????????????????????????????? | | #???# ###??# #??????????????????????????????? | | #?# #????#"# #??????????????????????????????? | | ## ?????### #??????????????????????????????? | | #### ?????## #??????????????????????????????? | | #####??##### ##??????????????????????????????? | | ##??#### #???????????????????????????????? | +----------------------------------------------------+ Best States ------------- Heat Dissipation 37 Energy Generation 31 Energy Capacity 1600 Matter Stores 550 Matter Capacity 800 Sight Range 21 Robot Scan Range 15 Terrain Scan Range 16 Terrain Scan Density 10 Jamming Range 12 Cloak Strength 2 Additional Mass Support 9 Corruption Containment 8 Resistance: TH 30 Resistance: EM 25 Core Shielding 20 Weapon Shielding 90 Weapon Cycling 20 Evasion (%) 62 Targeting Accuracy 10 Recoil Reduction 3 Energy Filtering 30 Salvage Targeting 4 Item Schematics ----------------- Cesium-ion Thruster | -9/Recycling | Hacked Imp. Cooling System | -9/Recycling | Hacked Combat Drone Bay | -6/Data Miner | Free Lgt. Regenerative Plating | -6/Data Miner | Free Cld. Gravmag System | -6/Data Miner | Free Imp. Matter Compressor | -6/Data Miner | Free Tiamat Missile Launcher | -6/Data Miner | Free Imp. Gyrokinetic Inverter | -6/Data Miner | Free Imp. Point Defense System | -6/Data Miner | Free HERF Cannon | -6/Data Miner | Free Adv. Plasma Cannon | -6/Data Miner | Free Robot Schematics ------------------ H-66 Slayer | -6/Data Miner | Free L-41 Fighter | -6/Data Miner | Free R-10 Processor | -6/Data Miner | Free G-50 Soldier | -6/Data Miner | Free Fabricated ------------ Nothing Repaired ---------- Nothing Studied --------- Imp. Medium Treads | -6/Factory | Hacked Alien Tech Used ----------------- None Achievements -------------- Longdome?! You May Approach The Wall Challenges ------------ None Game ------ Seed TimingExpertLance Manual? 0 Play Time 01:27:13 Cumulative 43.9 hours Start 2025.12.28 @ 18:42:07 End 2025.12.28 @ 20:14:32 Sessions 1 Manual Loads 0 Difficulty Rogue Special Mode None Game No. 60 Rogue 60 Adventurer 0 Explorer 0 Win Type - Total 1 Types 1/0/0/0/0/0/0/0/0/0 Lore% 35 Gallery% 43 Achievement% 34 Wizard Run 0 Options --------- Layout 2 ASCII 0 Keyboard 1 Movement Numpad Keybinds 0 Fullscreen 2 Font 24/Smallcaps Map View 50x44 Zoom Use 0% Tactical HUD 1 Map Filters NONE Filters NONE Steam 1 RUN: ad8270b7-9f6e-4af4-8502-d4131dcdc28b